fUST/lending_fUST_20240123
["ID","MTS","AMOUNT","RATE_DAILY","PERIOD"]
[312560629,1705994669691,-1003.4282895,0.00045,120]
[312560630,1705994669716,-1000.0,0.00045,120]
[312560631,1705994669741,-2005.51,0.00045,32]
[312560632,1705994669790,-200.0,0.00045,120]
[312560633,1705994669840,-20000.0,0.00045,30]
[312560634,1705994669886,-429.0,0.00045,90]
[312560635,1705994669936,-150.0,0.000452,30]
[312560636,1705994669988,-831.77,0.00045205,31]
[312560637,1705994670031,-665.99,0.00045205,31]
[312560638,1705994670072,-542.16,0.00045205,31]
[312560639,1705994670114,-625.12,0.00045205,31]
[312560640,1705994670155,-500.0,0.00045205,31]
[312560641,1705994670195,-561.32,0.00045205,31]
[312560642,1705994670239,-613.54,0.00045205,31]
[312560643,1705994670281,-1320.3,0.00045205,31]
[312560644,1705994670321,-515.08,0.00045205,31]
[312560645,1705994670362,-1319.31,0.00045205,31]
[312560646,1705994670401,-500.0,0.00045205,31]
[312560647,1705994670442,-555.72,0.00045205,31]
[312560648,1705994670482,-500.0,0.00045205,31]
[312560649,1705994670523,-963.53,0.00045205,31]
[312560650,1705994670563,-1701.55,0.00045205,31]
[312560651,1705994670604,-1185.15,0.00045205,31]
[312560652,1705994670749,-848.7,0.00045205,31]
[312560653,1705994670776,-676.15,0.00045205,31]
[312560654,1705994670802,-600.0,0.00045205,31]
[312560655,1705994670826,-600.0,0.00045205,31]
[312560656,1705994670851,-600.0,0.00045205,31]
[312560657,1705994670875,-600.0,0.00045205,31]
[312560658,1705994670900,-600.0,0.00045205,31]
[312560659,1705994670925,-600.0,0.00045205,31]
[312560660,1705994670952,-400.2074869,0.00045205,31]
[312560661,1705994670978,-752.44,0.00045205,31]
[312560662,1705994671007,-500.0,0.00045205,31]
[312560663,1705994671035,-625.17,0.00045205,31]
[312560664,1705994671064,-1224.59,0.00045205,31]
[312560665,1705994671093,-1344.97,0.00045205,31]
[312560666,1705994671122,-500.0,0.00045205,31]
[312560667,1705994671149,-1755.36,0.00045205,31]
[312560668,1705994671178,-1542.37,0.00045205,31]
[312560669,1705994671208,-500.0,0.00045205,31]
[312560670,1705994671236,-500.0,0.00045205,31]
[312560671,1705994671264,-1570.82,0.00045205,31]
[312560672,1705994671291,-500.0,0.00045205,31]
[312560673,1705994671318,-581.0,0.00045205,31]
[312560674,1705994671345,-1622.72,0.00045205,31]
[312560675,1705994671372,-1545.31,0.00045205,31]
[312560676,1705994671399,-1909.61,0.00045205,31]
[312560677,1705994671426,-556.69257466,0.00045205,31]
[312560678,1705994671452,-573.23,0.00045205,31]
[312560679,1705994671480,-953.96,0.00045205,31]
[312560680,1705994671507,-1776.09,0.00045205,31]
[312560681,1705994671534,-677.48,0.00045205,31]
[312560682,1705994671560,-1795.13,0.00045205,31]
[312560683,1705994671586,-675.39,0.00045205,31]
[312560684,1705994671612,-558.18,0.00045205,31]
[312560685,1705994671638,-1792.37,0.00045205,31]
[312560686,1705994671664,-500.0,0.00045205,31]
[312560687,1705994671690,-871.27,0.00045205,31]
[312560688,1705994671716,-1840.41,0.00045205,31]
[312560689,1705994671742,-1341.38,0.00045205,31]
[312560690,1705994671769,-1156.76,0.00045205,31]
[312560691,1705994671796,-500.0,0.00045205,31]
[312560692,1705994671823,-1448.75,0.00045205,31]
[312560693,1705994671849,-150.0,0.000454,30]
[312560694,1705994671874,-175.0,0.0004545,30]
[312560695,1705994671902,-831.77,0.00045479,31]
[312560696,1705994671927,-665.99,0.00045479,31]
[312560697,1705994671954,-542.16,0.00045479,31]
[312560698,1705994671980,-625.12,0.00045479,31]
[312560699,1705994672007,-500.0,0.00045479,31]
[312560700,1705994672050,-561.32,0.00045479,31]
[312560701,1705994672081,-613.54,0.00045479,31]
[312560702,1705994672111,-1320.3,0.00045479,31]
[312560703,1705994672143,-515.08,0.00045479,31]
[312560704,1705994672176,-1319.31,0.00045479,31]
[312560705,1705994672207,-500.0,0.00045479,31]
[312560706,1705994672240,-555.72,0.00045479,31]
[312560707,1705994672277,-500.0,0.00045479,31]
[312560708,1705994672307,-963.53,0.00045479,31]
[312560709,1705994672339,-1701.55,0.00045479,31]
[312560710,1705994672371,-1185.15,0.00045479,31]
[312560711,1705994672548,-848.7,0.00045479,31]
[312560712,1705994672577,-676.15,0.00045479,31]
[312560713,1705994672607,-752.44,0.00045479,31]
[312560714,1705994672635,-500.0,0.00045479,31]
[312560715,1705994672663,-625.17,0.00045479,31]
[312560716,1705994672692,-1224.59,0.00045479,31]
[312560717,1705994672719,-1344.97,0.00045479,31]
[312560718,1705994672745,-500.0,0.00045479,31]
[312560719,1705994672776,-1755.36,0.00045479,31]
[312560720,1705994672805,-1542.37,0.00045479,31]
[312560721,1705994672837,-500.0,0.00045479,31]
[312560722,1705994672868,-500.0,0.00045479,31]
[312560723,1705994672900,-1570.82,0.00045479,31]
[312560724,1705994672931,-500.0,0.00045479,31]
[312560725,1705994672960,-581.0,0.00045479,31]
[312560726,1705994672989,-1622.72,0.00045479,31]
[312560727,1705994673020,-1545.31,0.00045479,31]
[312560728,1705994673046,-1909.61,0.00045479,31]
[312560729,1705994673073,-573.23,0.00045479,31]
[312560730,1705994673100,-953.96,0.00045479,31]
[312560731,1705994673125,-1776.09,0.00045479,31]
[312560732,1705994673151,-677.48,0.00045479,31]
[312560733,1705994673178,-1795.13,0.00045479,31]
[312560734,1705994673205,-675.39,0.00045479,31]
[312560735,1705994673236,-558.18,0.00045479,31]
[312560736,1705994673268,-1792.37,0.00045479,31]
[312560737,1705994673301,-151.09978434,0.00045479,31]
[312560738,1705994673334,-871.27,0.00045479,31]
[312560739,1705994673366,-1840.41,0.00045479,31]
[312560740,1705994673399,-1341.38,0.00045479,31]
[312560741,1705994673430,-1156.76,0.00045479,31]
[312560742,1705994673461,-500.0,0.00045479,31]
[312560743,1705994673491,-1448.75,0.00045479,31]
[312560744,1705994673527,-150.0,0.000456,30]
[312560745,1705994673555,-831.77,0.00045753,31]
[312560746,1705994673583,-665.99,0.00045753,31]
[312560747,1705994673611,-542.16,0.00045753,31]
[312560748,1705994673639,-625.12,0.00045753,31]
[312560749,1705994673668,-500.0,0.00045753,31]
[312560750,1705994673697,-561.32,0.00045753,31]
[312560751,1705994673725,-613.54,0.00045753,31]
[312560752,1705994673758,-1320.3,0.00045753,31]
[312560753,1705994673788,-515.08,0.00045753,31]
[312560754,1705994673816,-1319.31,0.00045753,31]
[312560755,1705994673847,-500.0,0.00045753,31]
[312560756,1705994673878,-555.72,0.00045753,31]
[312560757,1705994673907,-348.83742172,0.00045753,31]
[312560758,1705994673935,-963.53,0.00045753,31]
[312560759,1705994673963,-1701.55,0.00045753,31]
[312560760,1705994673990,-1185.15,0.00045753,31]
[312560761,1705994674020,-848.7,0.00045753,31]
[312560762,1705994674047,-676.15,0.00045753,31]
[312560763,1705994674075,-752.44,0.00045753,31]
[312560764,1705994674103,-500.0,0.00045753,31]
[312560765,1705994674132,-625.17,0.00045753,31]
[312560766,1705994674159,-1224.59,0.00045753,31]
[312560767,1705994674186,-1344.97,0.00045753,31]
[312560768,1705994674306,-500.0,0.00045753,31]
[312560769,1705994674336,-1755.36,0.00045753,31]
[312560770,1705994674363,-1542.37,0.00045753,31]
[312560771,1705994674393,-500.0,0.00045753,31]
[312560772,1705994674422,-500.0,0.00045753,31]
[312560773,1705994674449,-1570.82,0.00045753,31]
[312560774,1705994674475,-500.0,0.00045753,31]
[312560775,1705994674501,-581.0,0.00045753,31]
[312560776,1705994674530,-1622.72,0.00045753,31]
[312560777,1705994674555,-1545.31,0.00045753,31]
[312560778,1705994674581,-1909.61,0.00045753,31]
[312560779,1705994674606,-573.23,0.00045753,31]
[312560780,1705994674632,-953.96,0.00045753,31]
[312560781,1705994674659,-1776.09,0.00045753,31]
[312560782,1705994674687,-677.48,0.00045753,31]
[312560783,1705994674715,-1795.13,0.00045753,31]
[312560784,1705994674744,-675.39,0.00045753,31]
[312560785,1705994674774,-558.18,0.00045753,31]
[312560786,1705994674801,-1792.37,0.00045753,31]
[312560787,1705994674828,-1840.41,0.00045753,31]
[312560788,1705994674855,-1341.38,0.00045753,31]
[312560789,1705994674882,-1156.76,0.00045753,31]
[312560790,1705994674909,-500.0,0.00045753,31]
[312560791,1705994674935,-1448.75,0.00045753,31]
[312560792,1705994674962,-150.0,0.000458,30]
[312560793,1705994674988,-1847.0,0.000459,31]
[312560794,1705994675016,-843.0,0.000459,30]
[312560795,1705994675044,-150.0,0.00046,30]
[312560796,1705994675073,-831.77,0.00046027,31]
[312560797,1705994675100,-665.99,0.00046027,31]
[312560798,1705994675128,-542.16,0.00046027,31]
[312560799,1705994675156,-625.12,0.00046027,31]
[312560800,1705994675184,-500.0,0.00046027,31]
[312560801,1705994675212,-561.32,0.00046027,31]
[312560802,1705994675243,-613.54,0.00046027,31]
[312560803,1705994675280,-1320.3,0.00046027,31]
[312560804,1705994675314,-515.08,0.00046027,31]
[312560805,1705994675345,-1319.31,0.00046027,31]
[312560806,1705994675377,-500.0,0.00046027,31]
[312560807,1705994675408,-555.72,0.00046027,31]
[312560808,1705994675437,-963.53,0.00046027,31]
[312560809,1705994675467,-1701.55,0.00046027,31]
[312560810,1705994675495,-1185.15,0.00046027,31]
[312560811,1705994675528,-848.7,0.00046027,31]
[312560812,1705994675556,-676.15,0.00046027,31]
[312560813,1705994675584,-752.44,0.00046027,31]
[312560814,1705994675611,-500.0,0.00046027,31]
[312560815,1705994675637,-625.17,0.00046027,31]
[312560816,1705994675664,-1224.59,0.00046027,31]
[312560817,1705994675692,-1344.97,0.00046027,31]
[312560818,1705994675720,-288.96212523,0.00046027,31]
[312560819,1705994675748,-1755.36,0.00046027,31]
[312560820,1705994675776,-1542.37,0.00046027,31]
[312560821,1705994675803,-371.30549674,0.00046027,31]
[312560822,1705994675907,-500.0,0.00046027,31]
[312560823,1705994675958,-1570.82,0.00046027,31]
[312560824,1705994675989,-500.0,0.00046027,31]
[312560825,1705994676018,-581.0,0.00046027,31]
[312560826,1705994676048,-1622.72,0.00046027,31]
[312560827,1705994676077,-1545.31,0.00046027,31]
[312560828,1705994676105,-1909.61,0.00046027,31]
[312560829,1705994676132,-573.23,0.00046027,31]
[312560830,1705994676159,-953.96,0.00046027,31]
[312560831,1705994676187,-1776.09,0.00046027,31]
[312560832,1705994676215,-677.48,0.00046027,31]
[312560833,1705994676243,-1795.13,0.00046027,31]
[312560834,1705994676272,-675.39,0.00046027,31]
[312560835,1705994676299,-558.18,0.00046027,31]
[312560836,1705994676326,-1792.37,0.00046027,31]
[312560837,1705994676353,-1840.41,0.00046027,31]
[312560838,1705994676381,-1341.38,0.00046027,31]
[312560839,1705994676408,-1156.76,0.00046027,31]
[312560840,1705994676436,-531.71574612,0.00046027,31]
[312560841,1705994676464,-1448.75,0.00046027,31]
[312560842,1705994676492,-150.0,0.000462,30]
[312560843,1705994676522,-355.08923723,0.00046301,31]
[312560844,1705994677335,-500.0,0.00043524,120]
[312560845,1705994677361,-868.81529544,0.00043524,120]
[312560846,1705994677387,-683.62692832,0.00043524,120]
[312560847,1705994677417,-1333.99912694,0.00043524,120]
[312560848,1705994677445,-519.53626354,0.00043524,120]
[312560849,1705994677471,-575.44042595,0.00043524,120]
[312560850,1705994677496,-453.12003731,0.00043524,120]
[312560851,1705994677526,-660.42494014,0.00043524,30]
[312560852,1705994677552,-983.34920107,0.00043524,120]
[312560853,1705994677578,-243.58874245,0.00043524,30]
[312560854,1705994677605,-752.19716017,0.00043524,120]
[312560855,1705994677631,-279.36291843,0.00043524,30]
[312560856,1705994677657,-313.93019152,0.00043524,120]
[312560857,1705994677682,-151.00458429,0.00043524,30]
[312560858,1705994677708,-549.83569797,0.00043524,30]
[312560859,1705994677735,-489.63,0.00043524,120]
[312560860,1705994677762,-1440.84176753,0.00043524,60]
[312560861,1705994677791,-154.86062444,0.00043524,30]
[312560862,1705994677817,-154.78330238,0.00043524,30]
[312560863,1705994677843,-500.0,0.00043524,30]
[312560864,1705994677869,-2602.66847807,0.00043524,30]
[312560865,1705994677895,-185788.98431404,0.00043524,120]
[312560866,1705994685124,-1283.07,0.00035,45]
[312560867,1705994685160,-436525.50041093,0.00041095,60]
[312560868,1705994685188,-500.0,0.00041643,31]
[312560869,1705994685216,-1202.86,0.00041917,31]
[312560870,1705994685246,-500.0,0.00041917,31]
[312560871,1705994685276,-1202.86,0.00042191,31]
[312560872,1705994685302,-500.0,0.00042191,31]
[312560873,1705994685328,-510.01105299,0.00042465,31]
[312560874,1705994685363,-1202.86,0.00042465,31]
[312560875,1705994685395,-500.0,0.00042465,31]
[312560876,1705994685425,-1202.86,0.00042739,31]
[312560877,1705994685456,-512.29008516,0.00042739,31]
[312560878,1705994685488,-1202.86,0.00043013,31]
[312560879,1705994685520,-230.02692,0.0004325,30]
[312560880,1705994685551,-1202.86,0.00043287,31]
[312560881,1705994685665,-1202.86,0.00043561,31]
[312560882,1705994685702,-1202.86,0.00043835,31]
[312560883,1705994685737,-1202.86,0.00044109,31]
[312560884,1705994685770,-1202.86,0.00044383,31]
[312560885,1705994685802,-1202.86,0.00044657,31]
[312560886,1705994685833,-1202.86,0.00044931,31]
[312560887,1705994685865,-1955.39,0.00045205,31]
[312560888,1705994685896,-1202.86,0.00045205,31]
[312560889,1705994685926,-1955.39,0.00045479,31]
[312560890,1705994685956,-1202.86,0.00045479,31]
[312560891,1705994685986,-1955.39,0.00045753,31]
[312560892,1705994686018,-1202.86,0.00045753,31]
[312560893,1705994686050,-1955.39,0.00046027,31]
[312560894,1705994686081,-1202.86,0.00046027,31]
[312560895,1705994686112,-665.99,0.00046301,31]
[312560896,1705994686144,-542.16,0.00046301,31]
[312560897,1705994686177,-613.54,0.00046301,31]
[312560898,1705994686209,-515.08,0.00046301,31]
[312560899,1705994686242,-1319.31,0.00046301,31]
[312560900,1705994686275,-500.0,0.00046301,31]
[312560901,1705994686306,-555.72,0.00046301,31]
[312560902,1705994686337,-963.53,0.00046301,31]
[312560903,1705994686368,-1701.55,0.00046301,31]
[312560904,1705994686399,-1185.15,0.00046301,31]
[312560905,1705994686430,-848.7,0.00046301,31]
[312560906,1705994686461,-676.15,0.00046301,31]
[312560907,1705994686491,-752.44,0.00046301,31]
[312560908,1705994686522,-500.0,0.00046301,31]
[312560909,1705994686553,-625.17,0.00046301,31]
[312560910,1705994686585,-1224.59,0.00046301,31]
[312560911,1705994686617,-1542.37,0.00046301,31]
[312560912,1705994686648,-500.0,0.00046301,31]
[312560913,1705994686680,-581.0,0.00046301,31]
[312560914,1705994686711,-1909.61,0.00046301,31]
[312560915,1705994686743,-573.23,0.00046301,31]
[312560916,1705994686777,-953.96,0.00046301,31]
[312560917,1705994686809,-677.48,0.00046301,31]
[312560918,1705994686841,-675.39,0.00046301,31]
[312560919,1705994686873,-558.18,0.00046301,31]
[312560920,1705994686905,-1792.37,0.00046301,31]
[312560921,1705994686935,-1840.41,0.00046301,31]
[312560922,1705994686967,-1341.38,0.00046301,31]
[312560923,1705994686998,-1156.76,0.00046301,31]
[312560924,1705994687031,-1448.75,0.00046301,31]
[312560925,1705994687063,-1955.39,0.00046301,31]
[312560926,1705994687095,-1202.86,0.00046301,31]
[312560927,1705994687127,-150.0,0.000464,30]
[312560928,1705994687157,-665.99,0.00046575,31]
[312560929,1705994687188,-542.16,0.00046575,31]
[312560930,1705994687298,-613.54,0.00046575,31]
[312560931,1705994687332,-515.08,0.00046575,31]
[312560932,1705994687364,-1319.31,0.00046575,31]
[312560933,1705994687395,-500.0,0.00046575,31]
[312560934,1705994687426,-555.72,0.00046575,31]
[312560935,1705994687458,-963.53,0.00046575,31]
[312560936,1705994687490,-1701.55,0.00046575,31]
[312560937,1705994687521,-1185.15,0.00046575,31]
[312560938,1705994687552,-848.7,0.00046575,31]
[312560939,1705994687585,-676.15,0.00046575,31]
[312560940,1705994687617,-752.44,0.00046575,31]
[312560941,1705994687648,-449.37712406,0.00046575,31]
[312560942,1705994687679,-625.17,0.00046575,31]
[312560943,1705994687710,-1224.59,0.00046575,31]
[312560944,1705994687740,-1542.37,0.00046575,31]
[312560945,1705994687774,-500.0,0.00046575,31]
[312560946,1705994687807,-581.0,0.00046575,31]
[312560947,1705994687838,-1909.61,0.00046575,31]
[312560948,1705994687871,-573.23,0.00046575,31]
[312560949,1705994687904,-953.96,0.00046575,31]
[312560950,1705994687936,-677.48,0.00046575,31]
[312560951,1705994687971,-675.39,0.00046575,31]
[312560952,1705994688004,-558.18,0.00046575,31]
[312560953,1705994688040,-1792.37,0.00046575,31]
[312560954,1705994688075,-1840.41,0.00046575,31]
[312560955,1705994688107,-1156.76,0.00046575,31]
[312560956,1705994688141,-1341.38,0.00046575,31]
[312560957,1705994688171,-1448.75,0.00046575,31]
[312560958,1705994688205,-1955.39,0.00046575,31]
[312560959,1705994688239,-1202.86,0.00046575,31]
[312560960,1705994688270,-150.0,0.000466,30]
[312560961,1705994688301,-2000.0,0.00046623,30]
[312560962,1705994688331,-155.69188162,0.000468,30]
[312560963,1705994688361,-665.99,0.00046849,31]
[312560964,1705994688392,-542.16,0.00046849,31]
[312560965,1705994688423,-613.54,0.00046849,31]
[312560966,1705994688454,-515.08,0.00046849,31]
[312560967,1705994688485,-1319.31,0.00046849,31]
[312560968,1705994688517,-500.0,0.00046849,31]
[312560969,1705994688549,-555.72,0.00046849,31]
[312560970,1705994688579,-963.53,0.00046849,31]
[312560971,1705994688609,-1701.55,0.00046849,31]
[312560972,1705994688640,-1185.15,0.00046849,31]
[312560973,1705994688672,-848.7,0.00046849,31]
[312560974,1705994688702,-676.15,0.00046849,31]
[312560975,1705994688735,-752.44,0.00046849,31]
[312560976,1705994688766,-625.17,0.00046849,31]
[312560977,1705994688883,-1224.59,0.00046849,31]
[312560978,1705994688914,-1542.37,0.00046849,31]
[312560979,1705994688945,-407.32310131,0.00046849,31]
[312560980,1705994688976,-581.0,0.00046849,31]
[312560981,1705994689011,-1909.61,0.00046849,31]
[312560982,1705994689045,-573.23,0.00046849,31]
[312560983,1705994689079,-953.96,0.00046849,31]
[312560984,1705994689111,-677.48,0.00046849,31]
[312560985,1705994689143,-675.39,0.00046849,31]
[312560986,1705994689175,-558.18,0.00046849,31]
[312560987,1705994689207,-1792.37,0.00046849,31]
[312560988,1705994689238,-1840.41,0.00046849,31]
[312560989,1705994689269,-1156.76,0.00046849,31]
[312560990,1705994689299,-1341.38,0.00046849,31]
[312560991,1705994689330,-1448.75,0.00046849,31]
[312560992,1705994689360,-1955.39,0.00046849,31]
[312560993,1705994689389,-1202.86,0.00046849,31]
[312560994,1705994689419,-525.0,0.00047,120]
[312560995,1705994689449,-665.99,0.00047123,31]
[312560996,1705994689479,-542.16,0.00047123,31]
[312560997,1705994689510,-613.54,0.00047123,31]
[312560998,1705994689541,-515.08,0.00047123,31]
[312560999,1705994689572,-1319.31,0.00047123,31]
[312561000,1705994689604,-500.0,0.00047123,31]
[312561001,1705994689635,-555.72,0.00047123,31]
[312561002,1705994689666,-963.53,0.00047123,31]
[312561003,1705994689696,-1701.55,0.00047123,31]
[312561004,1705994689725,-1185.15,0.00047123,31]
[312561005,1705994689755,-848.7,0.00047123,31]
[312561006,1705994689788,-676.15,0.00047123,31]
[312561007,1705994689820,-752.44,0.00047123,31]
[312561008,1705994689851,-625.17,0.00047123,31]
[312561009,1705994689882,-1224.59,0.00047123,31]
[312561010,1705994689913,-1542.37,0.00047123,31]
[312561011,1705994689944,-581.0,0.00047123,31]
[312561012,1705994689976,-1909.61,0.00047123,31]
[312561013,1705994690007,-573.23,0.00047123,31]
[312561014,1705994690039,-953.96,0.00047123,31]
[312561015,1705994690070,-677.48,0.00047123,31]
[312561016,1705994690101,-675.39,0.00047123,31]
[312561017,1705994690132,-558.18,0.00047123,31]
[312561018,1705994690163,-1792.37,0.00047123,31]
[312561019,1705994690195,-1840.41,0.00047123,31]
[312561020,1705994690228,-1156.76,0.00047123,31]
[312561021,1705994690262,-1341.38,0.00047123,31]
[312561022,1705994690294,-1448.75,0.00047123,31]
[312561023,1705994690416,-1955.39,0.00047123,31]
[312561024,1705994690451,-1202.86,0.00047123,31]
[312561025,1705994690488,-666.06239716,0.00047397,31]
[312561026,1705994690520,-542.2889751,0.00047397,31]
[312561027,1705994690552,-613.62144527,0.00047397,31]
[312561028,1705994690584,-1319.51173988,0.00047397,31]
[312561029,1705994690615,-515.13604629,0.00047397,31]
[312561030,1705994690647,-158.4543315,0.00047397,31]
[312561031,1705994690678,-555.85149766,0.00047397,31]
[312561032,1705994690709,-963.63725561,0.00047397,31]
[312561033,1705994690741,-1701.75857453,0.00047397,31]
[312561034,1705994690776,-1185.27,0.00047397,31]
[312561035,1705994690807,-848.87436516,0.00047397,31]
[312561036,1705994690839,-676.18006123,0.00047397,31]
[312561037,1705994690870,-752.50106859,0.00047397,31]
[312561038,1705994690901,-625.18047155,0.00047397,31]
[312561039,1705994690931,-1224.6036628,0.00047397,31]
[312561040,1705994690963,-1542.44950682,0.00047397,31]
[312561041,1705994690995,-581.01429457,0.00047397,31]
[312561042,1705994691029,-1909.846918,0.00047397,31]
[312561043,1705994691062,-573.43773908,0.00047397,31]
[312561044,1705994691097,-954.1779715,0.00047397,31]
[312561045,1705994691130,-677.56929779,0.00047397,31]
[312561046,1705994691164,-675.51050149,0.00047397,31]
[312561047,1705994691196,-558.41583807,0.00047397,31]
[312561048,1705994691230,-1792.386245,0.00047397,31]
[312561049,1705994691265,-1840.60247233,0.00047397,31]
[312561050,1705994691299,-1156.79600338,0.00047397,31]
[312561051,1705994691334,-1341.44800112,0.00047397,31]
[312561052,1705994691367,-1448.82497847,0.00047397,31]
[312561053,1705994691399,-1955.59932022,0.00047397,31]
[312561054,1705994691432,-1202.87026625,0.00047397,31]
[312561055,1705994691463,-2910.00814003,0.000478,120]
[312561056,1705994691495,-269.935979,0.00048,120]
[312561057,1705994691526,-1000.0,0.00048,120]
[312561058,1705994691556,-20000.0,0.00048,30]
[312561059,1705994691586,-458.70526849,0.00049,30]
[312561060,1705994691617,-1040.9042467,0.00049,30]
[312561061,1705994691648,-1000.0,0.00049333,120]
[312561062,1705994691679,-817.447,0.00049897,120]
[312561063,1705994691709,-223.939,0.00049897,120]
[312561064,1705994691747,-817.448,0.00049897,120]
[312561065,1705994691778,-223.939,0.00049897,120]
[312561066,1705994691808,-817.448,0.00049897,120]
[312561067,1705994691911,-223.94,0.00049897,120]
[312561068,1705994691944,-817.447,0.00049897,120]
[312561069,1705994691975,-223.939,0.00049897,120]
[312561070,1705994692010,-817.448,0.00049897,120]
[312561071,1705994692044,-223.94,0.00049897,120]
[312561072,1705994692075,-926.08295485,0.000499,120]
[312561073,1705994692107,-569.20559443,0.00049998,120]
[312561074,1705994692139,-13064.22716697,0.0005,120]
[312561075,1705994692170,-1000.0,0.0005,120]
[312561076,1705994692204,-322.99896009,0.0005,120]
[312561077,1705994692237,-9127.82395975,0.0005,60]
[312561078,1705994692270,-200.0,0.0005,120]
[312561079,1705994692304,-13499.039882,0.0005,30]
[312561080,1705994692335,-558.7948095,0.0005,30]
[312561081,1705994692366,-175.0,0.0005,30]
[312561082,1705994692398,-1000.0,0.00051,30]
[312561083,1705994692430,-460.34158838,0.00051442,120]
[312561084,1705994692461,-891.94321476,0.00052,30]
[312561085,1705994692491,-87155.32108204,0.00052532,120]
[312561086,1705994692523,-460.96095926,0.00053,35]
[312561087,1705994692554,-100000.0,0.00053,120]
[312561088,1705994692585,-100000.0,0.000535,120]
[312561089,1705994692616,-6950.44698402,0.000539,120]
[312561090,1705994692649,-1163.89920497,0.0005397,90]
[312561091,1705994692681,-958.11391158,0.00054,120]
[312561092,1705994692713,-100000.0,0.00054,120]
[312561093,1705994692745,-1000.0,0.00054499,120]
[312561094,1705994692775,-200.0,0.00054575,120]
[312561095,1705994692807,-505.74433908,0.00054794,120]
[312561096,1705994692837,-500.0,0.00054794,31]
[312561097,1705994692866,-500.0,0.00054794,31]
[312561098,1705994692896,-500.0,0.00054794,31]
[312561099,1705994692926,-500.0,0.00054794,31]
[312561100,1705994692956,-500.0,0.00054794,31]
[312561101,1705994692987,-500.0,0.00054794,31]
[312561102,1705994693018,-254.13442847,0.00054794,31]
[312561103,1705994695332,445.34447189,0.00045,30]
[312561184,1705995038801,-154.84515485,0.00017126,3]
[312561185,1705995038810,-154.84515485,0.00017127,2]
[312561186,1705995038819,-154.84515485,0.00017128,2]
[312561187,1705995038828,-154.84515485,0.00017129,2]
[312561188,1705995038838,-454.16859633,0.00017135,2]
[312561189,1705995038849,-392.79527113,0.00017136,2]
[312561190,1705995038864,-1421.50497156,0.00017136,2]
[312561191,1705995038876,-5973.50964001,0.00017136,2]
[312561192,1705995038889,-1310.87390607,0.00017136,2]
[312561193,1705995038900,-1092.38594637,0.00017136,2]
[312561194,1705995038915,-10202.84952288,0.00017136,2]
[312561195,1705995038927,-4506.08074198,0.00017136,2]
[312561196,1705995038937,-154.8863637,0.00017848,2]
[312561197,1705995038946,-154.91363883,0.00017848,2]
[312561198,1705995038956,-2855.67650508,0.00017897,2]
[312561199,1705995038965,-8243.78409377,0.00017898,2]
[312561200,1705995038976,-875.70455422,0.000189,2]
[312561201,1705995038986,-164.445356,0.00019178,2]
[312561202,1705995038996,-172.860602,0.00019178,2]
[312561203,1705995039007,-323.18511402,0.0002,2]
[312561204,1705995039017,-850.45866081,0.0002,2]
[312561205,1705995039026,-1198.20258863,0.0002,2]
[312561206,1705995039037,-154.84515485,0.0002,2]
[312561207,1705995039046,-8422.24,0.00020788,3]
[312561208,1705995039055,-16060.65,0.00020798,3]